Cogmind - Beta 9.6 *** ADVENTURER MODE // 2020.06.30 @ 15:52:41 Player: nutrag Result: Destroyed by D-53 Grenadier with Mini Grenade Launcher Performance ------------- Evolutions (0) 0 Regions Visited (4) 800 Robots Destroyed (22) 110 Value Destroyed (433) 433 Prototype IDs (0) 0 Alien Tech Used (0) 0 Bonus (0) 0 TOTAL SCORE: 1343 Bonus ------- None Cogmind --------- Core Integrity 0/250 Matter 300/300 Energy 99/100 System Corruption 0% Temperature Cool (0) Movement Core (150) Ox2 Location -9/Mines Parts ------- > --- POWER (1) -------- (None) > --- PROPULSION (2) --- (None) > --- UTILITY (2) ------ Small Storage Unit Targeting Computer > --- WEAPON (2) ------- Light Assault Rifle Makeshift Shrapnel Gun > --- INVENTORY (6) ---- Light Ion Engine Improved Heat Sink Light Armor Plating Beam Rifle Particle Gun Mini Grenade Launcher Peak State ------------ > --- POWER ------------ Light Nuclear Core > --- PROPULSION ------- Aluminum Leg Aluminum Leg > --- UTILITY ---------- High-capacity Storage Unit High-powered Tractor Beam > --- WEAPON ----------- Light Assault Rifle Makeshift Shrapnel Gun > --- INVENTORY -------- Light Ion Engine Improved Heat Sink Small Storage Unit Particle Gun [Rating: 13] Favorites ----------- Power Light Ion Engine Engine Light Ion Engine Power Core Light Nuclear Core Propulsion Aluminum Leg Treads Light Treads Leg Aluminum Leg Utility Small Storage Unit Device Improved Heat Sink Storage Small Storage Unit Processor Targeting Computer Weapon Light Assault Rifle Energy Gun Particle Gun Ballistic Gun Light Assault Rifle Launcher Grenade Launcher Build | -11 -10 -10 -10 -9 ------- Run | Scr Mat Min Exi Min Slots Evolved . | . . . . . Power . | . . . . . Propulsion . | . . . . . Utility . | . . . . . Weapon . | . . . . . Parts Attached 18 | 7 3 2 1 5 Power 3 | 1 1 . . 1 Engine 1 | 1 . . . . Core 2 | . 1 . . 1 Reactor . | . . . . . Propulsion 3 | 3 . . . . Treads 1 | 1 . . . . Leg 2 | 2 . . . . Wheel . | . . . . . Hover . | . . . . . Flight . | . . . . . Utility 6 | 1 1 1 . 3 Device 2 | . 1 . . 1 Storage 3 | 1 . 1 . 1 Processor 1 | . . . . 1 Hackware . | . . . . . Protection . | . . . . . Artifact . | . . . . . Weapon 6 | 2 1 1 1 1 Energy Gun 1 | . 1 . . . Energy Cannon . | . . . . . Ballistic Gun 4 | 2 . . 1 1 Ballistic Cannon . | . . . . . Launcher 1 | . . 1 . . Special Weapon . | . . . . . Impact Weapon . | . . . . . Slashing Weapon . | . . . . . Piercing Weapon . | . . . . . Special Melee Weapon . | . . . . . Unidentified Prototypes . | . . . . . Parts Lost 6 | . . 1 . 5 Power 1 | . . . . 1 Propulsion 2 | . . . . 2 Utility 1 | . . . . 1 Weapon 2 | . . 1 . 1 Highest Loss Streak 2 | . . 1 . 2 Average Slot Usage (%) 93 | . 97 94 93 86 Core 13 | . 11 14 14 14 Leg 26 | . 28 28 28 23 Device 4 | . 11 1 . 3 Storage 21 | . 14 26 28 20 Energy Gun 3 | . 11 1 . . Ballistic Gun 14 | . 16 8 7 20 Launcher 5 | . . 12 14 . Naked Turns . | . . . . . Heaviest Build 45 | 9 14 45 45 44 Greatest Support 20 | 20 20 20 20 20 Greatest Overweight (x) 4 | . . 2 2 4 Average Overweight (x) . | . . 1 2 1 Largest Inventory Capacity 14 | 6 6 14 14 14 Average Capacity 7 | 5 6 13 14 11 Most Carried 6 | 4 3 5 5 6 Average Carried 1 | . 2 4 4 4 Final Capacity 14 | 6 6 14 14 6 Final Carried 6 | 1 3 5 5 6 Class Distribution -------------------- 100% | Mutant Dominant Class ---------------- Mutant | -10/Materials Mutant | -10/Mines Mutant | -10/Exiles Mutant | -9/Mines Resources | -11 -10 -10 -10 -9 ----------- Run | Scr Mat Min Exi Min Matter Collected 497 | 216 135 . . 146 Remotely . | . . . . . Salvage Created 380 | 14 245 8 . 113 Parts 37 | 1 20 4 . 12 Haulers Intercepted . | . . . . . Recyclers Shooed . | . . . . . Parts Field Recycled . | . . . . . Retrieved Matter . | . . . . . Parts Self-Destructed . | . . . . . Prevented . | . . . . . Kills | -11 -10 -10 -10 -9 ------- Run | Scr Mat Min Exi Min Combat Hostiles Destroyed 19 | . 10 3 . 6 Guns 12 | . 10 . . 2 AOE 7 | . . 3 . 4 Classes Destroyed 6 | 1 3 1 . 1 Worker 1 | . . 1 . . Tunneler 1 | 1 . . . . Watcher 1 | . 1 . . . Swarmer 13 | . 6 3 . 4 Grunt 4 | . 4 . . . Sentry 2 | . . . . 2 Best Kill Streak 7 | 1 7 4 . 4 Combat Bots Only 7 | . 7 3 . 4 Max Kills in Single Turn 4 | 1 2 3 . 4 Gunslinging 1 | . 1 . . . Exploded 4 | . . 2 . 4 Melee . | . . . . . Uniques/NPCs Destroyed . | . . . . . Combat | -11 -10 -10 -10 -9 -------- Run | Scr Mat Min Exi Min Damage Taken 800 | . 342 70 . 388 Core 255 | . 96 32 . 127 Absorbed by Shields . | . . . . . Core Remaining (%) 100 | 100 . . . . Volleys Fired 55 | 2 43 4 . 6 Largest 2 | 2 2 2 . 2 Hottest 85 | 40 85 50 . 50 Shots Fired 106 | 4 83 7 . 12 Gun 101 | 4 83 3 . 11 Cannon . | . . . . . Launcher 5 | . . 4 . 1 Special . | . . . . . Kinetic 67 | 4 49 3 . 11 Thermal 34 | . 34 . . . Explosive 5 | . . 4 . 1 Electromagnetic . | . . . . . Robot Hit Streak 14 | 2 14 5 . 9 Robot Miss Streak 5 | 1 5 2 . 2 Penetration Max . | . . . . . Secondary Targets 1 | . 1 . . . Max Gunslinging Chain 1 | . 1 . . . Shots Hit Robots 70 | 2 53 5 . 10 Core Hits 36 | 2 19 6 . 9 Critical Hits 1 | . 1 . . . Critical Kills 1 | . 1 . . . Critical Parts Destroyed . | . . . . . Melee Attacks . | . . . . . Impact . | . . . . . Slashing . | . . . . . Piercing . | . . . . . Sneak Attacks . | . . . . . Combat Hostiles . | . . . . . Follow-up Attacks . | . . . . . Damage Inflicted 1163 | 15 583 284 . 281 Guns 755 | 15 583 16 . 141 Cannons . | . . . . . Explosions 408 | . . 268 . 140 Melee . | . . . . . Ramming . | . . . . . Kinetic 414 | 15 242 16 . 141 Thermal 341 | . 341 . . . Explosive 408 | . . 268 . 140 Electromagnetic . | . . . . . Impact . | . . . . . Slashing . | . . . . . Piercing . | . . . . . Highest Corruption . | . . . . . Average Corruption . | . . . . . Corruption Purged . | . . . . . Overload Shots . | . . . . . Overflow Damage 36 | . . 30 . 6 Projectiles . | . . . . . Explosions 36 | . . 30 . 6 Melee . | . . . . . Knockbacks . | . . . . . Impact . | . . . . . Kinetic . | . . . . . Secondary . | . . . . . Self-Inflicted Damage 66 | . . 45 . 21 Shots 3 | . . 2 . 1 Rammed . | . . . . . Targets Rammed . | . . . . . Kicked . | . . . . . Crushed . | . . . . . Highest Temperature 52 | . 52 28 . 50 Average Temperature 20 | . 19 15 . 27 Received Heat Transfer 168 | . 96 . . 72 Siege Activations . | . . . . . Robots Corrupted . | . . . . . Combat Hostiles . | . . . . . Parts Fried . | . . . . . Impact Corruptions . | . . . . . Robots Melted . | . . . . . Combat Hostiles . | . . . . . Parts Melted 1 | . 1 . . . Heat Transferred 814 | . 814 . . . Parts Sabotaged . | . . . . . Parts Stolen . | . . . . . Parts Stripped . | . . . . . Power Chain Reactions . | . . . . . Missiles Intercepted . | . . . . . Alert | -11 -10 -10 -10 -9 ------- Run | Scr Mat Min Exi Min Peak Influence 297 | 5 297 114 . 124 Average Influence 29 | . 176 62 . 100 Maximum Alert Level 1 | . 1 . . . Low Security (%) 94 | 100 48 100 . 100 Level 1 5 | . 51 . . . Level 2 . | . . . . . Level 3 . | . . . . . Level 4 . | . . . . . Level 5 . | . . . . . High Security . | . . . . . Max Security . | . . . . . Squads Dispatched 1 | . 1 . . . Investigation 1 | . 1 . . . Extermination . | . . . . . Reinforcement . | . . . . . Assault . | . . . . . Garrison . | . . . . . Intercept . | . . . . . Construction Impeded . | . . . . . Haulers Reinforced . | . . . . . Stealth | -11 -10 -10 -10 -9 --------- Run | Scr Mat Min Exi Min Distress Signals 1 | . 1 . . . Communications Jammed . | . . . . . Distress Signals . | . . . . . Times Spotted 21 | . 14 3 . 4 Peak Tracking Total 4 | . 4 1 . 2 Tactical Retreats . | . . . . . Traps | -11 -10 -10 -10 -9 ------- Run | Scr Mat Min Exi Min Traps Triggered 1 | . 1 . . . Indirectly . | . . . . . Trap Hack Attempts . | . . . . . Triggered . | . . . . . Disarmed . | . . . . . Reprogrammed . | . . . . . Reused . | . . . . . Traps Extracted . | . . . . . Installed . | . . . . . Triggered . | . . . . . Machines | -11 -10 -10 -10 -9 ---------- Run | Scr Mat Min Exi Min Machines Disabled 4 | . 1 2 . 1 Max in Single Turn 1 | . 1 1 . 1 Machines Sabotaged . | . . . . . Garrisons Compromised . | . . . . . Overloaded Fab Kills . | . . . . . Fab Network Shutdowns . | . . . . . Hacking | -11 -10 -10 -10 -9 --------- Run | Scr Mat Min Exi Min Machines Accessed 3 | . 3 . . . Terminals 3 | . 3 . . . Fabricators . | . . . . . Repair Stations . | . . . . . Recycling Units . | . . . . . Scanalyzers . | . . . . . Garrison Access . | . . . . . Total Hacks 9 | . 9 . . . Successful 3 | . 3 . . . Failed 6 | . 6 . . . Catastrophic . | . . . . . Database Lockouts . | . . . . . Manual . | . . . . . Terminals 9 | . 9 . . . Fabricators . | . . . . . Repair Stations . | . . . . . Recycling Units . | . . . . . Scanalyzers . | . . . . . Garrison Access . | . . . . . Terminal Hacks 3 | . 3 . . . Record 3 | . 3 . . . Fabricator Hacks . | . . . . . Repair Station Hacks . | . . . . . Recycling Unit Hacks . | . . . . . Scanalyzer . | . . . . . Garrison Access Hacks . | . . . . . Unauthorized Hacks . | . . . . . Terminals . | . . . . . Fabricators . | . . . . . Repair Stations . | . . . . . Recycling Units . | . . . . . Scanalyzers . | . . . . . Garrison Access . | . . . . . Data Cores Recovered . | . . . . . Used . | . . . . . Hacking Detections 3 | . 3 . . . Full Trace Events 3 | . 3 . . . Feedback Events . | . . . . . Feedback Blocked . | . . . . . Robot Schematics Acquired . | . . . . . Robots Built . | . . . . . Matter . | . . . . . Time . | . . . . . Total Robot Build Rating . | . . . . . Part Schematics Acquired . | . . . . . Parts Built . | . . . . . Matter . | . . . . . Time . | . . . . . Total Part Build Rating . | . . . . . Parts Repaired . | . . . . . Time . | . . . . . Parts Recycled . | . . . . . Recycled Matter . | . . . . . Retrieved Matter . | . . . . . Retrieved Components . | . . . . . Parts Scanalyzed . | . . . . . Part Schematics Acquired . | . . . . . Parts Damaged . | . . . . . Bothacking | -11 -10 -10 -10 -9 ------------ Run | Scr Mat Min Exi Min Used RIF Installer . | . . . . . Robots Hacked . | . . . . . Non-combat . | . . . . . Combat . | . . . . . Robot Hacks Applied . | . . . . . Relay Couplers Released . | . . . . . Robots Rewired . | . . . . . Allies Hacked . | . . . . . Hacks Repelled . | . . . . . Allies | -11 -10 -10 -10 -9 -------- Run | Scr Mat Min Exi Min Total Allies . | . . . . . Largest Group . | . . . . . Highest-Rated Group . | . . . . . Highest-Rated Ally . | . . . . . Total Orders . | . . . . . Ally Attacks . | . . . . . Total Damage . | . . . . . Kills . | . . . . . Allies Corrupted . | . . . . . Allies Melted . | . . . . . Intel | -11 -10 -10 -10 -9 ------- Run | Scr Mat Min Exi Min Robot Analysis Total . | . . . . . Derelict Logs Recovered 2 | . . . . 2 Drone Launches . | . . . . . Drone Recoveries . | . . . . . Exploration | -11 -10 -10 -10 -9 ------------- Run | Scr Mat Min Exi Min Turns Passed 4533 | 3231 415 251 301 335 Spaces Moved 1547 | 821 244 136 167 179 Core 16 | 12 . . . 4 Treads . | . . . . . Legs 1531 | 809 244 136 167 175 Wheels . | . . . . . Hover . | . . . . . Flight . | . . . . . Fastest Speed 50 | 50 120 120 180 150 Average Speed 136 | 118 120 174 180 168 Slowest Speed 240 | 120 120 180 180 240 Overloaded Moves . | . . . . . Propulsion Burnouts . | . . . . . Robots Hopped . | . . . . . Cave-ins Triggered . | . . . . . Exploration Rate (%) 42 | 75 39 28 27 41 Regions Visited 4 Branch Regions 3 Pre-discovered Areas 1 | . . . . 1 Known Exits Taken . | . . . . . Unknown Exits Taken 4 | 1 1 1 1 . Scrap Searched 2 | . . . . 2 Spaces Dug . | . . . . . Terrain Destroyed 26 | . . 19 . 7 Melee . | . . . . . Projectile . | . . . . . AOE 26 | . . 19 . 7 Actions | -11 -10 -10 -10 -9 --------- Run | Scr Mat Min Exi Min Total 3878 | 3071 292 143 168 204 Wait 2238 | 2235 . . . 3 Move 1543 | 820 243 135 166 179 Hop . | . . . . . Pick Up 19 | 6 3 2 1 7 Fast Attach 2 | 2 . . . . Attach 9 | 4 1 . 1 3 Detach . | . . . . . Swap 7 | 1 2 2 . 2 Drop 5 | 1 . . . 4 Fire 55 | 2 43 4 . 6 Melee . | . . . . . Ram . | . . . . . Kick . | . . . . . Crush . | . . . . . Escape Stasis . | . . . . . Rewire . | . . . . . Trap . | . . . . . Miscellaneous . | . . . . . Route ------- -11/Scrapyard -10/Materials -10/Mines -10/Exiles -9/Mines History --------- Turn | Location | Event 2 | -11/Scrapyard | Met Revision 17 21 | -11/Scrapyard | Discovered new exit (range 15) 3232 | -11/Scrapyard | Entered Materials 3233 | -10/Materials | Build established: Mutant 3453 | -10/Materials | Destroyed 7 combat bots 3641 | -10/Materials | Discovered new exit (range 5) 3647 | -10/Materials | Entered Mines 3806 | -10/Mines | Core integrity fell below 50% 3889 | -10/Mines | Deemed a non-threat by the Exiles lab entrance 3889 | -10/Mines | Discovered new exit (range 5) 3898 | -10/Mines | Entered Exiles 3942 | -10/Exiles | Met 8R-AWN 3972 | -10/Exiles | Met EX-HEX 4178 | -10/Exiles | Discovered new exit (range 14) 4199 | -10/Exiles | Entered Mines 4363 | -9/Mines | A weapon hastily lodged in a ceiling crevice suddenly fell to the ground 4393 | -9/Mines | Learned Materials stockpile data 4511 | -9/Mines | Assembled infested the area 4531 | -9/Mines | Core integrity fell below 20% 4534 | -9/Mines | Destroyed by D-53 Grenadier with Mini Grenade Launcher Last Messages --------------- Found 43 Matter. Found Targeting Computer. Found Mni. Grenade Launcher. Found Beam Rifle. Acquired 43 matter. Acquired Targeting Computer. Dropped Hcp. Storage Unit. Acquired 45 matter. Acquired Lgt. Armor Plating. R-06 Scavenger collects Hcp. Storage Unit. R-06 Scavenger collects Imp. Ion Engine. Acquired Mni. Grenade Launcher. R-06 Scavenger collects Hvy. Assault Rifle. Acquired 24 matter. Acquired Beam Rifle. ALERT: Infestation in the mines, dispatching Demolisher response squad. C-30 ARC bursts open, deploying its payload. D-53 Grenadier unfolds itself. Aluminum Leg destroyed. Lgt. Nuclear Core destroyed. Map ----- +----------------------------------------------------+ | | | | | | | | | | | | | ?????????????????????????????????????????????????? | | ?????????????????????????????????????????????????? | | ???????????????????????????????????############### | | ??????????????????????????????????##!!## | | ??????????????????????????????????#" [ # | | ??????????????????????????????????# + | | ??????????????????????????????????#[=% + | | ??????????????????????????????????#"/! # | | ??????????????????????????????????##]!## | | ???????????????????????????????????###### | | ????????????????????????????????????????# | | ????????????????????????????????????????# | | ????????????????????????????????????????# | | ??????????????????????????????####??????####### # | | ????????????????????????????### #######??????# # | | ?????????????????????####### # ##?????# # | | ????????????????????## ####### # | | ???????????????????## # | | ?????????" ####??# k # | | ?????????" " # @ ### ########## | | ????????????????#% d #####?## #????????? | | ????????????????# d #??????# #????????? | | ????????????????#### #??????# ###??????? | | ???????????????????# ###??????# #??????? | | ???????????????????# ##????????#### #??????? | | ???????????????????## # ###????????????# #??????? | | ????????????????????######??????????????# ###????? | | ????????????????????????????????????????# #????? | | ????????????????????????????????????????## #????? | | ?????????????????????????????????????????# ##???? | | ?????????????????????????????????????????# ##??? | | ?????????????????????????????????????????# ##?? | | ????????????????????????????????????????## ##? | | ???????????????????????????????????????## ## | | ??????????????????????????????????????## # | | ??????????????????????????????????????# | | ??????????????????????????????????????# | | ??????????????????????????????????????## | | ???????????????????????????????????????## | | ?????????????????????????????????# ##### | | ?????????????????????????????????# | | ?????????????????????????????????# ! [ | | ?????????????????????????????????####### | | | ???????????????????????????????????????## | +----------------------------------------------------+ Best States ------------- Heat Dissipation 39 Energy Generation 14 Energy Capacity 160 Matter Stores 300 Matter Capacity 300 Sight Range 16 Terrain Scan Density 10 Resistance: KI 20 Resistance: TH 20 Resistance: EX 20 Resistance: EM 20 Resistance: I 20 Resistance: S 20 Resistance: P 20 Evasion (%) 50 Targeting Accuracy 5 Offensive Hacking 10 Item Schematics ----------------- None Robot Schematics ------------------ None Fabricated ------------ Nothing Alien Tech Used ----------------- None Achievements -------------- Storm Trooper Challenges ------------ None Game ------ Seed XenonImpulseActivator Manual? 0 Play Time 00:15:37 Cumulative 2.1 hours Start 2020.06.30 @ 15:35:58 End 2020.06.30 @ 15:52:41 Sessions 1 Manual Loads 0 Difficulty Adventurer Special Mode None Game No. 4 Rogue 0 Adventurer 4 Explorer 0 Win Type - Total 0 Types 0/0/0/0/0/0/0 Lore% 11 Gallery% 6 Achievement% 6 Wizard Run 0 Options --------- ASCII 0 Keyboard 0 Movement Mouse Keybinds 0 Fullscreen 2 Font 24/Smallcaps Map View 76x50 Tactical HUD 0 Map Filters NONE Filters NONE Steam 1 RUN: fff3a619-e8c8-49f7-bbf5-c6701770cc0b